bitfinex-derivatives/quotes_BTCF0:USTF0_20250417
["timestamp","ask_amount","ask_price","bid_price","bid_amount"]
[1744924001816,0.1493754,85108.0,85107.0,0.5426729]
[1744924010946,0.1493754,85108.0,85107.0,0.5104729]
[1744924011347,0.1493754,85108.0,85107.0,0.5426729]
[1744924011846,0.1794754,85108.0,85107.0,0.5426729]
[1744924012049,0.1794754,85108.0,85107.0,0.72166909]
[1744924013450,0.1794754,85108.0,85107.0,0.68946909]
[1744924015537,0.1794754,85108.0,85107.0,0.57197239]
[1744924015734,0.2121754,85108.0,85107.0,0.3929762]
[1744924015938,0.2121754,85108.0,85107.0,0.3609762]
[1744924016147,0.2151754,85108.0,85107.0,0.3609762]
[1744924017245,0.2120954,85108.0,85107.0,0.3609762]
[1744924017447,0.2120954,85108.0,85107.0,0.0001762]
[1744924018343,0.2150954,85108.0,85107.0,0.0001762]
[1744924054258,0.2150954,85108.0,85098.0,0.17899619]
[1744924054259,0.0587532,85101.0,85098.0,0.17899619]
[1744924054463,0.1175078,85099.0,85098.0,0.17899619]
[1744924054972,0.1798078,85099.0,85098.0,0.17899619]
[1744924056165,0.1828078,85099.0,85098.0,0.17899619]
[1744924056566,0.1175147,85094.0,85090.0,0.0001762]
[1744924057472,0.1175188,85091.0,85090.0,0.0001762]
[1744924058169,0.1205188,85091.0,85090.0,0.0001762]
[1744924058473,0.1849188,85091.0,85090.0,0.0001762]
[1744924062477,0.1175257,85086.0,85081.0,0.0001458]
[1744924062771,0.1175257,85086.0,85066.0,0.3608]
[1744924062772,0.1175327,85081.0,85080.0,0.031]
[1744924062971,0.1175327,85081.0,85080.0,0.0311458]
[1744924063161,0.1205327,85081.0,85080.0,0.0311458]
[1744924063567,0.1814327,85081.0,85080.0,0.0311458]
[1744924064278,0.1814327,85081.0,85080.0,0.0001458]
[1744924065777,0.1175396,85076.0,85075.0,0.0647]
[1744924065979,0.1175396,85076.0,85075.0,0.0648458]
[1744924070281,0.1480396,85076.0,85075.0,0.0648458]
[1744924072677,0.1805396,85076.0,85075.0,0.0648458]
[1744924077075,0.1835396,85076.0,85075.0,0.0648458]
[1744924077879,0.1835396,85076.0,85075.0,0.0001458]
[1744924079187,0.1805396,85076.0,85075.0,0.0001458]
[1744924080777,0.1175437,85073.0,85072.0,0.00011753]
[1744924081084,0.1205437,85073.0,85072.0,0.00011753]
[1744924081279,0.1537437,85073.0,85072.0,0.00011753]
[1744924081485,0.1854437,85073.0,85072.0,0.00011753]
[1744924082676,0.1854437,85073.0,85072.0,3e-08]
[1744924082880,0.1854437,85073.0,85066.0,0.36128427]
[1744924082881,0.1175534,85066.0,85059.0,0.0659]
[1744924083185,0.1175575,85063.0,85062.0,0.0316]
[1744924087790,0.1175575,85063.0,85062.0,0.0638]
[1744924088279,0.1483575,85063.0,85062.0,0.0638]
[1744924090092,0.1784575,85063.0,85062.0,0.0638]
[1744924090893,0.1784575,85063.0,85062.0,0.0322]
[1744924091088,0.1175589,85062.0,85061.0,0.00880473]
[1744924091389,0.1196787,85063.0,85059.0,0.3937]
[1744924091390,0.1175617,85060.0,85059.0,0.3937]
[1744924091788,0.1795617,85060.0,85059.0,0.40242887]
[1744924091994,0.1175741,85051.0,85050.0,0.23866103]
[1744924092192,0.1175741,85051.0,85050.0,0.34930683]
[1744924092394,0.1487741,85051.0,85050.0,0.1106458]
[1744924092586,0.1795741,85051.0,85050.0,0.1428458]
[1744924092981,0.1795741,85051.0,85050.0,0.0801458]
[1744924093294,0.1795741,85051.0,85050.0,0.0001458]
[1744924093496,0.1795741,85051.0,85050.0,0.3609458]
[1744924093789,0.1795741,85051.0,85050.0,0.3608]
[1744924094591,0.1795741,85051.0,85050.0,0.36088]
[1744924096092,0.1795741,85051.0,85050.0,0.3608]
[1744924096395,0.1795741,85051.0,85050.0,0.36631781]
[1744924099585,0.1795741,85051.0,85050.0,0.00551781]
[1744924100991,0.1175755,85050.0,85049.0,0.3913]
[1744924101492,0.1819755,85050.0,85049.0,0.3913]
[1744924101994,0.1819755,85050.0,85049.0,0.39681781]
[1744924102186,0.1819755,85050.0,85049.0,0.03601781]
[1744924104506,0.1819755,85050.0,85049.0,0.00551781]
[1744924106099,0.117581,85046.0,85045.0,0.3608]
[1744924106502,0.180481,85046.0,85045.0,0.3608]
[1744924106685,0.180481,85046.0,85045.0,0.1608]
[1744924106891,0.180481,85046.0,85045.0,0.16631781]
[1744924112200,0.180481,85046.0,85045.0,0.16931781]
[1744924113097,0.148781,85046.0,85045.0,0.28690021]
[1744924113299,0.117581,85046.0,85045.0,0.28690021]
[1744924113503,0.148381,85046.0,85045.0,0.35080021]
[1744924114502,0.0308,85046.0,85045.0,0.35080021]
[1744924114902,0.148381,85046.0,85045.0,0.35080021]
[1744924115090,0.148381,85046.0,85045.0,0.23321781]
[1744924115297,0.148381,85046.0,85045.0,0.35080021]
[1744924119208,0.148381,85046.0,85045.0,0.23321781]
[1744924119809,0.148381,85046.0,85045.0,0.07241781]
[1744924121111,0.148381,85046.0,85045.0,0.19000021]
[1744924124209,0.148381,85046.0,85045.0,0.07241781]
[1744924124508,0.148381,85046.0,85045.0,0.00851781]
[1744924124812,0.180781,85046.0,85045.0,0.00859781]
[1744924125215,0.180781,85046.0,85045.0,0.00559781]
[1744924125515,0.148381,85046.0,85045.0,0.18318021]
[1744924125904,0.148381,85046.0,85045.0,0.24798021]
[1744924126414,0.148381,85046.0,85045.0,0.13039781]
[1744924126606,0.181281,85046.0,85045.0,0.13039781]
[1744924126809,0.181281,85046.0,85045.0,0.24798021]
[1744924138333,0.181281,85046.0,85045.0,0.21468021]
[1744924144330,0.181281,85046.0,85045.0,0.18318021]
[1744924152038,0.181281,85046.0,85045.0,0.21428021]
[1744924156329,0.181281,85046.0,85045.0,0.18318021]
[1744924158640,0.181281,85046.0,85045.0,0.54398021]
[1744924162040,0.181281,85046.0,85045.0,0.18318021]
[1744924163134,8e-05,85072.0,85058.0,0.1175644]
[1744924163439,0.1175602,85062.0,85058.0,0.9091644]
[1744924163740,0.1175603,85062.0,85058.0,1.0028644]
[1744924164143,0.1175606,85061.0,85058.0,1.0028644]
[1744924164441,0.00017631,85059.0,85058.0,1.0028644]
[1744924165243,0.00017631,85059.0,85058.0,1.01486201]
[1744924169145,0.03347631,85059.0,85058.0,1.01486201]
[1744924174951,0.15103941,85059.0,85058.0,0.9423644]
[1744924175153,0.15403941,85059.0,85058.0,0.9092444]
[1744924175345,0.21583941,85059.0,85058.0,0.9092444]
[1744924176353,0.21283941,85059.0,85058.0,0.9092444]
[1744924176555,0.21283941,85059.0,85058.0,0.9417444]
[1744924180953,0.09527631,85059.0,85058.0,0.9417444]
[1744924182250,0.21283941,85059.0,85058.0,0.9417444]
[1744924184457,0.09527631,85059.0,85058.0,0.9417444]
[1744924185054,0.06477631,85059.0,85058.0,0.9417444]
[1744924187261,0.06777631,85059.0,85058.0,0.9417444]
[1744924188162,0.06477631,85059.0,85058.0,0.9417444]
[1744924188351,0.06477631,85059.0,85058.0,0.2201444]
[1744924188552,0.06477631,85059.0,85058.0,0.5809444]
[1744924189047,0.06477631,85059.0,85058.0,0.2201444]
[1744924189253,0.06477631,85059.0,85058.0,0.5809444]
[1744924190162,0.06477631,85059.0,85058.0,0.76013467]
[1744924190365,0.18233941,85059.0,85058.0,0.76013467]
[1744924193366,0.06477631,85059.0,85058.0,0.76013467]
[1744924194465,0.06477631,85059.0,85058.0,0.5809444]
[1744924195667,0.18233941,85059.0,85058.0,0.5809444]
[1744924195865,0.18233941,85059.0,85058.0,0.2201444]
[1744924196264,0.18233941,85059.0,85058.0,0.5809444]
[1744924196866,0.06477631,85059.0,85058.0,0.5809444]
[1744924198361,0.18233941,85059.0,85058.0,0.5809444]
[1744924199063,0.06477631,85059.0,85058.0,0.5809444]
[1744924200762,0.18233941,85059.0,85058.0,0.5809444]
[1744924201862,0.18233941,85059.0,85058.0,0.5484444]
[1744924206776,0.45052265,85076.0,85070.0,0.1175479]
[1744924206777,0.08972265,85076.0,85070.0,0.1175479]
[1744924206962,0.0622,85075.0,85074.0,0.1175423]
[1744924207157,0.1797409,85075.0,85074.0,0.3805423]
[1744924207561,0.0622,85075.0,85074.0,0.3805423]
[1744924208160,0.0622,85075.0,85074.0,0.3775423]
[1744924211567,0.0622,85075.0,85074.0,0.38306011]
[1744924214768,0.1797409,85075.0,85074.0,0.00551781]
[1744924215267,0.1797409,85075.0,85074.0,0.00559781]
[1744924215268,0.1827409,85075.0,85074.0,0.00559781]
[1744924215966,0.1827409,85075.0,85074.0,0.00551781]
[1744924216767,0.1175423,85074.0,85073.0,0.1175428]
[1744924217067,0.1205423,85074.0,85073.0,0.1175428]
[1744924217268,0.1829423,85074.0,85073.0,0.1175428]
[1744924217474,0.1175451,85072.0,85071.0,0.29795183]
[1744924217663,0.1175451,85072.0,85071.0,0.23917933]
[1744924217863,0.4783451,85072.0,85071.0,0.23917933]
[1744924218065,0.7313451,85072.0,85071.0,0.23917933]
[1744924218260,0.7313451,85072.0,85071.0,0.23925933]
[1744924219663,0.7313451,85072.0,85071.0,8e-05]
[1744924220671,0.4813451,85072.0,85071.0,8e-05]
[1744924220976,0.0587753,85069.0,85066.0,0.11772851]
[1744924221167,0.0617753,85069.0,85066.0,0.11772851]
[1744924221368,0.117552,85067.0,85066.0,0.11772851]
[1744924221562,0.117552,85067.0,85066.0,0.00017631]
[1744924221768,0.180752,85067.0,85066.0,0.00017631]
[1744924222274,0.183752,85067.0,85066.0,0.00017631]
[1744924222675,0.183752,85067.0,85066.0,0.00569412]
[1744924223778,0.183752,85067.0,85066.0,0.00577412]
[1744924226079,0.183752,85067.0,85066.0,0.00017631]
[1744924226580,0.183752,85067.0,85066.0,0.00569412]
[1744924230976,0.183752,85067.0,85066.0,0.00017631]
[1744924232067,0.183752,85067.0,85066.0,0.00569412]
[1744924232468,0.183752,85067.0,85066.0,0.02158309]
[1744924232877,0.183752,85067.0,85066.0,0.02158336]
[1744924236069,0.183752,85067.0,85066.0,0.01606555]
[1744924236470,0.183752,85067.0,85066.0,0.02210639]
[1744924237878,0.183752,85067.0,85066.0,0.13965979]
[1744924238075,0.183752,85067.0,85066.0,0.02210639]
[1744924239876,0.183752,85067.0,85066.0,0.05520639]
[1744924240076,0.183752,85067.0,85066.0,0.17275979]
[1744924240270,0.180752,85067.0,85066.0,0.17299684]
[1744924241079,0.183752,85067.0,85066.0,0.16747903]
[1744924241378,0.183752,85067.0,85066.0,0.17299684]
[1744924243977,0.183752,85067.0,85066.0,0.17323519]
[1744924245977,0.183752,85067.0,85066.0,0.16771738]
[1744924246373,0.183752,85067.0,85066.0,0.17323519]
[1744924247682,0.183752,85067.0,85066.0,0.17291781]
[1744924250985,0.183752,85067.0,85066.0,0.1674]
[1744924251181,0.183752,85067.0,85066.0,0.15082971]
[1744924251379,0.183752,85067.0,85066.0,0.17291183]
[1744924253292,0.183752,85067.0,85066.0,0.20306937]
[1744924254889,0.183752,85067.0,85066.0,0.20270761]
[1744924256085,0.180752,85067.0,85066.0,0.19718957]
[1744924256388,0.180752,85067.0,85066.0,0.20270752]
[1744924256690,0.180752,85067.0,85066.0,0.18654752]
[1744924257188,0.183752,85067.0,85066.0,0.18654752]
[1744924257688,0.183752,85067.0,85066.0,0.20282238]
[1744924258189,0.183752,85067.0,85066.0,0.18654752]
[1744924258391,0.183752,85067.0,85066.0,0.20282261]
[1744924258686,0.183752,85067.0,85066.0,0.20282259]
[1744924258880,0.183752,85067.0,85066.0,0.18654752]
[1744924259084,0.183752,85067.0,85066.0,0.20282259]
[1744924260382,0.183752,85067.0,85066.0,0.20282296]
[1744924260979,0.183752,85067.0,85066.0,0.19730515]
[1744924261493,0.183752,85067.0,85066.0,0.20282296]
[1744924262386,0.183752,85067.0,85066.0,0.08526956]
[1744924262589,0.183752,85067.0,85066.0,0.02196956]
[1744924262995,0.1175617,85060.0,85059.0,0.17937335]
[1744924263182,0.4813617,85060.0,85059.0,0.17937335]
[1744924263898,0.5437617,85060.0,85059.0,0.17937335]
[1744924264305,0.5437617,85060.0,85059.0,0.17945335]
[1744924264489,0.5437617,85060.0,85059.0,0.17937335]
[1744924264690,0.5437617,85060.0,85059.0,0.17945335]
[1744924266998,0.1175824,85045.0,85044.0,0.076428]
[1744924267203,0.1175866,85042.0,85041.0,0.3274053]
[1744924267992,0.1175866,85042.0,85041.0,0.3579053]
[1744924269888,0.1175866,85042.0,85041.0,0.37339536]
[1744924270892,0.1175866,85042.0,85041.0,0.19367786]
[1744924271391,0.1175866,85042.0,85041.0,0.1781878]
[1744924273309,0.1485866,85042.0,85041.0,0.1781878]
[1744924274398,0.1485866,85042.0,85041.0,0.5389878]
[1744924276102,0.1485866,85042.0,85041.0,0.3909]
[1744924276511,0.1485866,85042.0,85041.0,0.3608]
[1744924276708,0.1485866,85042.0,85041.0,8e-05]
[1744924276895,0.1485866,85042.0,85033.0,0.3911]
[1744924276896,0.1175976,85034.0,85033.0,0.3608]
[1744924277096,0.1205976,85034.0,85033.0,0.3608]
[1744924277300,0.1205976,85034.0,85025.0,0.30093516]
[1744924277301,0.1176087,85026.0,85025.0,0.30073833]
[1744924278101,0.1849087,85026.0,85025.0,0.30073833]
[1744924278301,0.1849087,85026.0,85025.0,0.30081833]
[1744924278710,0.1849087,85026.0,85025.0,0.30073833]
[1744924278908,0.1849087,85026.0,85025.0,0.30081833]
[1744924279111,0.1849087,85026.0,85025.0,0.29897416]
[1744924279303,0.1849087,85026.0,85025.0,0.29905416]
[1744924279810,0.117617,85020.0,85019.0,0.29897416]
[1744924280310,0.120617,85020.0,85019.0,0.29897416]
[1744924281207,0.481417,85020.0,85019.0,0.29897416]
[1744924281716,0.0588126,85015.0,85002.0,0.0001458]
[1744924282013,0.1176405,85003.0,85002.0,0.0001458]
[1744924282314,0.1176419,85002.0,85001.0,0.0303]
[1744924282610,0.1839419,85002.0,85001.0,0.5087433]
[1744924282808,0.1839419,85002.0,85001.0,0.4228]
[1744924283008,0.1839419,85002.0,85001.0,0.062]
[1744924283209,0.1869419,85002.0,85001.0,0.062]
[1744924284208,0.1839419,85002.0,85001.0,0.065]
[1744924285201,0.1839419,85002.0,85001.0,0.062]
[1744924287209,0.1839419,85002.0,85001.0,0.065]
[1744924288108,0.1839419,85002.0,85001.0,0.0303]
[1744924291216,0.1839419,85002.0,85001.0,0.0333]
[1744924295322,0.0588221,85001.0,84977.0,0.3608]
[1744924295619,0.1176585,84990.0,84989.0,0.36088]
[1744924296010,0.1176585,84990.0,84989.0,0.3608]
[1744924296204,0.1176585,84990.0,84989.0,0.3638]
[1744924296622,0.1507585,84990.0,84989.0,0.40408085]
[1744924299713,0.1507585,84990.0,84989.0,0.52174075]
[1744924300314,0.1507585,84990.0,84989.0,0.40408085]
[1744924300714,0.1832585,84990.0,84989.0,0.40408085]
[1744924301917,0.1832585,84990.0,84989.0,0.43588085]
[1744924302113,0.1832585,84990.0,84989.0,0.43596085]
[1744924303708,0.1832585,84990.0,84989.0,0.40416085]
[1744924304608,0.1832585,84990.0,84989.0,0.52182075]
[1744924305716,0.1832585,84990.0,84989.0,0.55222075]
[1744924307023,0.1176682,84983.0,84980.0,0.07654572]
[1744924307320,0.1176682,84983.0,84982.0,0.0031458]
[1744924307819,0.1176682,84983.0,84982.0,0.003]
[1744924308420,0.1490682,84983.0,84982.0,0.1207496]
[1744924308616,0.1490682,84983.0,84982.0,0.12973913]
[1744924308916,0.1490682,84983.0,84982.0,0.15993913]
[1744924311128,0.1490682,84983.0,84982.0,0.19243913]
[1744924311813,0.1802682,84983.0,84982.0,0.19243913]
[1744924316125,0.45052265,85002.0,84982.0,0.07476953]
[1744924316428,0.08972265,85002.0,85001.0,0.1176433]
[1744924316722,0.08972265,85002.0,85001.0,0.1276433]
[1744924317222,0.08972265,85002.0,85001.0,0.1306433]
[1744924317428,0.08972265,85002.0,85001.0,0.1938433]
[1744924317727,0.27042014,85008.0,85007.0,0.117635]
[1744924317728,0.1508348,85008.0,85007.0,0.117635]
[1744924318124,0.1508348,85008.0,85007.0,0.120635]
[1744924318427,0.5116348,85008.0,85007.0,0.120635]
[1744924318725,0.5116348,85008.0,85007.0,0.120715]
[1744924319125,0.5116348,85008.0,85007.0,0.117715]
[1744924320122,0.5116348,85008.0,85007.0,0.117635]
[1744924320424,0.6292696,85008.0,85007.0,0.117715]
[1744924321222,0.6292696,85008.0,85007.0,8e-05]
[1744924321422,0.6292696,85008.0,85007.0,0.117715]
[1744924323331,0.6292696,85008.0,85007.0,8e-05]
[1744924323627,0.117635,85007.0,85006.0,0.1176363]
[1744924323824,0.182135,85007.0,85006.0,0.1176363]
[1744924324130,0.214135,85007.0,85006.0,0.1176363]
[1744924327423,0.1176377,85005.0,85004.0,0.1764568]
[1744924331225,0.1176377,85005.0,85004.0,0.1794568]
[1744924331629,0.1176377,85005.0,85004.0,0.0618189]
[1744924332831,0.1821377,85005.0,85004.0,0.0618189]
[1744924334135,0.1821377,85005.0,85004.0,0.003]
[1744924347446,0.5429377,85005.0,85004.0,0.003]
[1744924349838,0.1821377,85005.0,85004.0,0.003]
[1744924350044,0.5429377,85005.0,85004.0,0.003]
[1744924352045,0.1821377,85005.0,85004.0,0.003]
[1744924352644,0.5429377,85005.0,85004.0,0.003]
[1744924354649,0.5429377,85005.0,85004.0,0.01860811]
[1744924354650,0.1821377,85005.0,85004.0,0.01860811]
[1744924356147,0.5429377,85005.0,85004.0,0.01860811]
[1744924356355,0.1821377,85005.0,85004.0,0.01860811]
[1744924356549,0.1821377,85005.0,85004.0,0.13624721]
[1744924356750,0.1495377,85005.0,85004.0,0.13624721]
[1744924357354,0.5431377,85005.0,85004.0,0.1206391]
[1744924357544,0.5431377,85005.0,85004.0,0.003]
[1744924358151,0.1176405,85003.0,85002.0,0.0893203]
[1744924359255,0.1176405,85003.0,85002.0,0.0923203]
[1744924366978,0.1488405,85003.0,85002.0,0.0923203]
[1744924367967,0.1820405,85003.0,85002.0,0.0923203]
[1744924368572,0.1176405,85003.0,85002.0,0.0923203]
[1744924368768,0.1176405,85003.0,85002.0,0.2099608]
[1744924369670,0.0588169,85008.0,85005.0,0.1176377]
[1744924369878,0.2084511,85009.0,85008.0,0.1176336]
[1744924370177,0.1764511,85009.0,85008.0,0.1206336]
[1744924370379,0.1764511,85009.0,85008.0,0.1515336]
[1744924371176,0.2084511,85009.0,85008.0,0.1515336]
[1744924372579,0.2084511,85009.0,85008.0,0.5123336]
[1744924375075,0.2384511,85009.0,85008.0,0.5433336]
[1744924375477,0.2384511,85009.0,85008.0,0.1825336]
[1744924386483,0.2384511,85009.0,85008.0,0.1516336]
[1744924390384,0.2706511,85009.0,85008.0,0.1516336]
[1744924397280,0.2706511,85009.0,85008.0,0.1486336]
[1744924403092,0.6314511,85009.0,85008.0,0.1486336]
[1744924403693,0.2706511,85009.0,85008.0,0.1486336]
[1744924403892,0.2706511,85009.0,85008.0,0.5094336]
[1744924404094,0.2706511,85009.0,85008.0,0.1486336]
[1744924407794,0.2706511,85009.0,85008.0,0.5094336]
[1744924408095,0.2706511,85009.0,85008.0,0.1486336]
[1744924426912,0.2384511,85009.0,85008.0,0.1486336]
[1744924431811,0.5992511,85009.0,85008.0,0.1486336]
[1744924434414,0.2384511,85009.0,85008.0,0.1486336]
[1744924440318,0.1176447,85000.0,84984.0,0.076]
[1744924440513,0.4784447,85000.0,84985.0,0.1479651]
[1744924440712,0.4784447,85000.0,84999.0,0.23957625]
[1744924441103,0.5437447,85000.0,84999.0,0.23957625]
[1744924441716,0.117653,84994.0,84987.0,0.076]
[1744924442121,0.117653,84994.0,84990.0,0.29960897]
[1744924442708,0.181353,84994.0,84990.0,0.29960897]
[1744924443014,0.181353,84994.0,84990.0,0.000108]
[1744924443210,0.184353,84994.0,84990.0,0.000108]
[1744924444123,0.181353,84994.0,84990.0,0.000108]
[1744924446521,0.542153,84994.0,84990.0,0.000108]
[1744924456913,0.573453,84994.0,84990.0,0.000108]
[1744924460130,0.573453,84994.0,84985.0,0.0322]
[1744924460323,0.573453,84994.0,84993.0,0.00025642]
[1744924464725,0.542153,84994.0,84993.0,0.00025642]
[1744924465121,0.542153,84994.0,84993.0,0.00325642]
[1744924466132,0.542153,84994.0,84993.0,0.00025642]
[1744924467130,0.542153,84994.0,84993.0,0.00325642]
[1744924468322,0.542153,84994.0,84993.0,0.00025642]
[1744924469125,0.542153,84994.0,84993.0,0.00325642]
[1744924470129,0.542153,84994.0,84993.0,0.00025642]
[1744924471830,0.542153,84994.0,84993.0,0.06305642]
[1744924473237,0.542153,84994.0,84993.0,0.06605642]
[1744924474837,0.6319228,84994.0,84993.0,0.06605642]
[1744924475335,0.6319228,84994.0,84993.0,0.06305642]
[1744924476137,0.6319228,84994.0,84993.0,0.06605642]
[1744924477237,0.6319228,84994.0,84993.0,0.03155642]
[1744924479137,0.6319228,84994.0,84993.0,0.03455642]
[1744924480134,0.6319228,84994.0,84993.0,0.03155642]
[1744924482733,0.542153,84994.0,84993.0,0.03155642]
[1744924483241,0.181353,84994.0,84993.0,0.03455642]
[1744924483432,0.542153,84994.0,84993.0,0.03455642]
[1744924488244,0.181353,84994.0,84993.0,0.03455642]
[1744924488434,0.542153,84994.0,84993.0,0.03455642]
[1744924489745,0.181353,84994.0,84993.0,0.03455642]
[1744924489950,0.542153,84994.0,84993.0,0.03455642]
[1744924492238,0.542153,84994.0,84993.0,0.03155642]
[1744924493852,0.181353,84994.0,84993.0,0.03155642]
[1744924494148,0.542153,84994.0,84993.0,0.03455642]
[1744924494539,0.542153,84994.0,84993.0,0.00325642]
[1744924495143,0.542153,84994.0,84993.0,0.00025642]
[1744924498257,0.542153,84994.0,84993.0,0.00325642]
[1744924501755,0.181353,84994.0,84993.0,0.00325642]
[1744924501955,0.542153,84994.0,84993.0,0.00325642]
[1744924503147,0.542153,84994.0,84993.0,0.00025642]
[1744924504059,0.542153,84994.0,84993.0,0.00325642]
[1744924507249,0.6319228,84994.0,84993.0,0.00325642]
[1744924508156,0.2711228,84994.0,84993.0,0.00325642]
[1744924508360,0.6319228,84994.0,84993.0,0.00325642]
[1744924514957,0.6319228,84994.0,84993.0,0.12091072]
[1744924514958,0.4505698,84994.0,84993.0,0.12091072]
[1744924515260,0.2074228,84994.0,84993.0,0.12091072]
[1744924515464,0.2074228,84994.0,84993.0,0.18631072]
[1744924518769,0.117653,84994.0,84993.0,0.18631072]
[1744924518968,0.1176514,84996.0,84995.0,0.1176502]
[1744924519270,0.0588242,84998.0,84997.0,0.1176488]
[1744924520064,0.0588242,84998.0,84997.0,0.1206488]
[1744924520368,0.4196242,84998.0,84997.0,0.003]
[1744924520671,0.4498242,84998.0,84997.0,0.003]
[1744924520962,0.4809242,84998.0,84997.0,0.00308]
[1744924521169,0.1201242,84998.0,84997.0,0.00308]
[1744924528064,0.4809242,84998.0,84997.0,0.00308]
[1744924528969,0.1201242,84998.0,84997.0,0.00308]
[1744924529275,0.4809242,84998.0,84997.0,0.00308]
[1744924530277,0.4809242,84998.0,84997.0,0.1207288]
[1744924530474,0.4809242,84998.0,84997.0,0.00308]
[1744924531672,0.4809242,84998.0,84997.0,0.1207288]
[1744924532980,0.1201242,84998.0,84997.0,0.1207288]
[1744924533172,0.4809242,84998.0,84997.0,0.1207288]
[1744924534681,0.4809242,84998.0,84997.0,0.1522288]
[1744924534978,0.1201242,84998.0,84997.0,0.1522288]
[1744924535180,0.4809242,84998.0,84997.0,0.1522288]
[1744924535965,0.1201242,84998.0,84997.0,0.1522288]
[1744924536170,0.4809242,84998.0,84997.0,0.1522288]
[1744924537381,0.1201242,84998.0,84997.0,0.1522288]
[1744924537578,0.4809242,84998.0,84997.0,0.1522288]
[1744924539083,0.1201242,84998.0,84997.0,0.1522288]
[1744924539281,0.4809242,84998.0,84997.0,0.1522288]
[1744924540185,0.4809242,84998.0,84997.0,0.03458]
[1744924540482,0.4809242,84998.0,84997.0,0.00308]
[1744924540678,0.4809242,84998.0,84997.0,0.003]
[1744924540878,0.4809242,84998.0,84997.0,0.00308]
[1744924541177,0.4809242,84998.0,84997.0,8e-05]
[1744924543181,0.4809242,84998.0,84997.0,0.00308]
[1744924546685,0.1201242,84998.0,84997.0,0.00308]
[1744924546891,0.4809242,84998.0,84997.0,0.00308]
[1744924547194,0.1201242,84998.0,84997.0,0.00308]
[1744924547491,0.4809242,84998.0,84997.0,0.00308]
[1744924547789,0.4809242,84998.0,84997.0,0.1207288]
[1744924553496,0.1201242,84998.0,84997.0,0.1207288]
[1744924553692,0.4809242,84998.0,84997.0,0.1207288]
[1744924558292,0.4809242,84998.0,84997.0,0.1535288]
[1744924559300,0.1201242,84998.0,84997.0,0.1535288]
[1744924560500,0.1201242,84998.0,84997.0,0.1852288]
[1744924567699,0.1201242,84998.0,84997.0,0.1535288]
[1744924572499,0.1201242,84998.0,84997.0,0.1865288]
[1744924576111,0.1764579,85008.0,85007.0,0.117635]
[1744924576316,0.0633,85008.0,85007.0,0.117635]
[1744924576920,0.1530698,85008.0,85007.0,0.117635]
[1744924577106,0.2707034,85008.0,85007.0,0.150635]
[1744924581515,0.1530698,85008.0,85007.0,0.150635]
[1744924582415,0.0633,85008.0,85007.0,0.150635]
[1744924583218,0.0323,85008.0,85007.0,0.150635]
[1744924583522,0.00017642,85010.0,85009.0,0.1176322]
[1744924583719,0.00017642,85010.0,85009.0,0.3976322]
[1744924583919,0.00017642,85010.0,85009.0,0.4622322]
[1744924584420,0.00017642,85010.0,85009.0,0.4652322]
[1744924584614,8e-05,85017.0,85016.0,0.1176225]
[1744924584815,0.0897698,85021.0,85020.0,0.117617]
[1744924585119,0.0897698,85021.0,85020.0,0.220617]
[1744924585820,0.0319,85024.0,85020.0,0.1664]
[1744924586016,8e-05,85021.0,85020.0,0.284017]
[1744924591627,0.00010801,85026.0,85025.0,0.1176101]
[1744924591817,0.0617,85035.0,85026.0,0.0588037]
[1744924592016,0.0617,85035.0,85034.0,0.1175976]
[1744924592312,0.0617,85035.0,85034.0,0.1932776]
[1744924592518,0.06178,85035.0,85034.0,0.2332776]
[1744924592718,0.0617,85035.0,85034.0,0.2332776]
[1744924592923,0.06178,85035.0,85034.0,0.2332776]
[1744924593129,0.06178,85035.0,85034.0,0.2362776]
[1744924593321,0.06178,85035.0,85034.0,0.2449002]
[1744924593520,0.0302,85040.0,85039.0,0.1175907]
[1744924593829,0.0302,85040.0,85039.0,0.12918357]
[1744924594317,0.0302,85040.0,85039.0,0.13218357]
[1744924594518,0.11787003,85043.0,85042.0,0.1175866]
[1744924594714,0.11776202,85043.0,85042.0,0.1175866]
[1744924594924,0.11784202,85043.0,85042.0,0.1175866]
[1744924595128,0.11784202,85043.0,85042.0,0.1205866]
[1744924597222,0.11784202,85043.0,85042.0,0.1962266]
[1744924597620,0.17894202,85043.0,85042.0,0.1962266]
[1744924600023,0.17894202,85043.0,85042.0,0.2270266]
[1744924600223,0.17894202,85043.0,85042.0,0.2585266]
[1744924600926,0.17886202,85043.0,85042.0,0.2585266]
[1744924601429,0.17905002,85043.0,85042.0,0.2585266]
[1744924601826,0.06146442,85043.0,85042.0,0.2585266]
[1744924602028,0.4505698,85057.0,85056.0,0.1175672]
[1744924602029,0.0897698,85057.0,85056.0,0.1175672]
[1744924602434,0.08996664,85058.0,85057.0,0.1175658]
[1744924602628,0.1228698,85058.0,85057.0,0.1175658]
[1744924602931,0.1229498,85058.0,85057.0,0.1175658]
[1744924603129,0.1228698,85058.0,85057.0,0.1205658]
[1744924603426,0.1229498,85058.0,85057.0,0.1531658]
[1744924605519,0.0898498,85058.0,85057.0,0.1531658]
[1744924605719,0.0897698,85058.0,85057.0,0.1531658]
[1744924606032,0.0898498,85058.0,85057.0,0.1531658]
[1744924606234,8e-05,85058.0,85057.0,0.1531658]
[1744924608331,0.0316,85060.0,85057.0,0.1531658]
[1744924608537,0.08994622,85066.0,85065.0,0.1175548]
[1744924608724,0.08994622,85066.0,85065.0,0.5583548]
[1744924608927,0.12202622,85066.0,85065.0,0.5583548]
[1744924609434,0.12202622,85066.0,85065.0,0.586557]
[1744924610034,0.12202622,85066.0,85065.0,0.57457352]
[1744924610339,0.00019684,85084.0,85065.0,0.47200455]
[1744924610631,0.0331,85082.0,85081.0,0.1175327]
[1744924610832,0.03318,85082.0,85081.0,0.07556]
[1744924611032,0.8723113,85082.0,85081.0,0.07556]
[1744924611233,0.8753113,85082.0,85081.0,0.07556]
[1744924611425,0.0587751,85069.0,85064.0,0.0587776]
[1744924611633,0.1175534,85066.0,85065.0,0.1175548]
[1744924611829,0.1175534,85066.0,85065.0,0.1343404]
[1744924612024,0.1496534,85066.0,85065.0,0.1343404]
[1744924612325,0.1496534,85066.0,85065.0,0.1175548]
[1744924613234,0.1496534,85066.0,85065.0,0.1931148]
[1744924613629,0.1496534,85066.0,85065.0,0.1175548]
[1744924616831,0.1496534,85066.0,85065.0,0.1480548]
[1744924618147,0.1526534,85066.0,85065.0,0.1480548]
[1744924619141,0.1496534,85066.0,85065.0,0.1480548]
[1744924624643,0.0321,85066.0,85065.0,0.1480548]
[1744924624843,0.1496534,85066.0,85065.0,0.1788548]
[1744924631847,0.1496534,85066.0,85065.0,0.35887401]
[1744924633346,0.0321,85066.0,85065.0,0.35887401]
[1744924633550,0.1496534,85066.0,85065.0,0.35887401]